Cogmind - Beta 10.2 @@@ ROGUE MODE // 2021.04.07 @ 15:17:49 Player: ChromeKnight Result: Self-destructed Performance ------------- Evolutions (6) 3000 Regions Visited (17) 3400 Robots Destroyed (67) 335 Value Destroyed (2913) 2913 Prototype IDs (242) 4840 Alien Tech Used (3) 600 Bonus (4671) 4671 TOTAL SCORE: 19759 Bonus ------- Follower Combat Kills 271 Aligned with FarCom 300 Met Data Miner 300 Used Data Conduit 3000 Met Zhirov 300 Pursued by Intercept 500 Cogmind --------- Core Integrity 837/1150 Matter 285/300 Energy 100/100 System Corruption 0% Temperature Cool (17) Movement Core (300) Ox5 Location -4/Factory Parts ------- > --- POWER (2) -------- (None) > --- PROPULSION (4) --- (None) > --- UTILITY (10) ----- Advanced Heat Sink Large Storage Unit Advanced Melee Analysis Suite Advanced Melee Analysis Suite Advanced Melee Analysis Suite Improved Armor Integrity Analyzer Improved Hacking Suite > --- WEAPON (4) ------- (None) > --- INVENTORY (10) --- Segregator Peak State ------------ > --- POWER ------------ Micro Fission Core Micro Fission Core > --- PROPULSION ------- Flexi-carbon Leg Flexi-carbon Leg Flexi-carbon Leg Combat Gravmag System > --- UTILITY ---------- Large Storage Unit Long-range Sensor Array Advanced Signal Interpreter Modified TNC Advanced Melee Analysis Suite Advanced Melee Analysis Suite Microactuators Deep Network Scanner > --- WEAPON ----------- Makeshift Hammer Chainsword Chainsword Lance > --- INVENTORY -------- Micro Fission Core Advanced Sensor Array Advanced Melee Analysis Suite Advanced Melee Analysis Suite Advanced Core Analyzer Improved Armor Integrity Analyzer Improved Maneuvering Thrusters Improved Weapon Shielding Skeleton Box Segregator [Rating: 94] Favorites ----------- Power Light Fission Core Engine Light Angular Momentum Engine Power Core Light Fission Core Reactor Light Antimatter Reactor Propulsion Aerolev Unit Treads Improved Treads Leg Flexi-carbon Leg Wheel Wheel Hover Unit Aerolev Unit Utility Advanced Melee Analysis Suite Device Experimental Sensor Array Storage Large Storage Unit Processor Advanced Melee Analysis Suite Hackware Deep Network Scanner Protection Weapon Shielding Weapon Chainsword Energy Gun Medium Laser Ballistic Gun Heavy Assault Rifle Ballistic Cannon Light Cannon Impact Weapon Makeshift Hammer Slashing Weapon Chainsword Piercing Weapon Lance Special Melee Weapon Advanced Datajack Build | -11 -10 -10 -10 -9 -8 -7 -6 -6 -6 -6 -5 -5 -5 -5 -5 -4 -4 ------- Run | Scr Mat Min Exi Min Mat Fac Fac Low Low Dat Pro Fac Upp Upp Zhi Pro Fac Slots Evolved 12 | . . . . . 4 2 2 . . . . 2 . . . . 2 Power 1 | . . . . . . . 1 . . . . . . . . . . Propulsion 2 | . . . . . 2 . . . . . . . . . . . . Utility 8 | . . . . . 2 2 1 . . . . 1 . . . . 2 Weapon 1 | . . . . . . . . . . . . 1 . . . . . Parts Attached 138 | 6 1 5 1 . 17 10 11 2 1 3 23 12 1 21 4 8 12 Power 22 | 1 . 1 . . 4 2 3 . . . 3 . . 5 . 2 1 Engine 7 | 1 . 1 . . 3 1 . . . . 1 . . . . . . Core 12 | . . . . . 1 1 3 . . . 2 . . 5 . . . Reactor 3 | . . . . . . . . . . . . . . . . 2 1 Propulsion 35 | 2 . . . . 6 4 5 . . . 7 3 . 7 . 1 . Treads 2 | . . . . . . . . . . . . . . 2 . . . Leg 15 | 2 . . . . 1 . . . . . 4 2 . 5 . 1 . Wheel 1 | . . . . . 1 . . . . . . . . . . . . Hover 17 | . . . . . 4 4 5 . . . 3 1 . . . . . Flight . | . . . . . . . . . . . . . . . . . . Utility 56 | 1 1 2 1 . 4 4 1 1 . 3 11 6 1 6 3 5 6 Device 24 | . . 1 . . . 2 . 1 . 1 5 4 1 2 . 3 4 Storage 2 | 1 . . 1 . . . . . . . . . . . . . . Processor 9 | . . . . . 3 1 1 . . . . 1 . 1 . 1 1 Hackware 2 | . . . . . . . . . . . 1 . . . . . 1 Protection 19 | . 1 1 . . 1 1 . . . 2 5 1 . 3 3 1 . Artifact . | . . . . . . . . . . . . . . . . . . Weapon 25 | 2 . 2 . . 3 . 2 1 1 . 2 3 . 3 1 . 5 Energy Gun 6 | 2 . . . . . . . . . . . . . . . . 4 Energy Cannon . | . . . . . . . . . . . . . . . . . . Ballistic Gun 1 | . . 1 . . . . . . . . . . . . . . . Ballistic Cannon 1 | . . 1 . . . . . . . . . . . . . . . Launcher . | . . . . . . . . . . . . . . . . . . Special Weapon . | . . . . . . . . . . . . . . . . . . Impact Weapon 4 | . . . . . 1 . . . 1 . 1 . . 1 . . . Slashing Weapon 11 | . . . . . 2 . 2 1 . . 1 2 . 2 . . 1 Piercing Weapon 1 | . . . . . . . . . . . . 1 . . . . . Special Melee Weapon 1 | . . . . . . . . . . . . . . . 1 . . Unidentified Prototypes 6 | . . 1 . . 1 . . 1 . . 1 . . . 1 1 . Parts Lost 58 | . . . . . 8 . . . . . 5 6 . 17 1 3 18 Power 12 | . . . . . 2 . . . . . 2 . . 4 1 . 3 Propulsion 16 | . . . . . 3 . . . . . 3 3 . 3 . . 4 Utility 17 | . . . . . 1 . . . . . . 1 . 7 . 2 6 Weapon 13 | . . . . . 2 . . . . . . 2 . 3 . 1 5 Highest Loss Streak 13 | . . . . . 7 . . . . . 2 3 . 6 1 3 13 Average Slot Usage (%) 88 | . 93 99 100 100 73 99 95 93 93 93 88 93 94 72 64 67 61 Engine 3 | . 14 14 14 14 8 . . . . . 1 . . . . . . Core 6 | . . . . . . 7 13 12 12 12 9 11 11 7 2 . . Leg 11 | . 28 28 28 28 5 . . . . . 3 15 11 11 22 22 10 Hover 10 | . . . . . 19 30 22 18 18 18 13 2 5 1 . . . Device 6 | . . . . . . 14 13 12 12 6 5 10 11 2 . 3 10 Storage 7 | . 14 14 14 14 9 7 6 6 6 6 6 5 5 5 5 5 5 Processor 16 | . . . . . 10 22 26 25 25 25 25 22 22 17 11 12 19 Hackware 1 | . . . . . . . . . . . 3 5 5 4 . . . Protection 4 | . 8 14 14 14 5 . . . . 5 3 . . 2 7 12 1 Energy Gun 1 | . 28 2 . . . . . . . . . . . . . . 5 Ballistic Gun 2 | . . 12 14 14 3 . . . . . . . . . . . . Ballistic Cannon 2 | . . 12 14 14 3 . . . . . . . . . . . . Impact Weapon 2 | . . . . . 1 7 2 . . 6 4 5 5 1 . . . Slashing Weapon 9 | . . . . . 5 7 10 16 17 12 11 14 16 12 14 8 3 Naked Turns . | . . . . . . . . . . . . . . . . . . Heaviest Build 69 | 11 12 20 32 32 33 33 38 41 41 43 48 42 42 60 69 69 60 Greatest Support 75 | 20 20 20 20 20 41 44 50 50 50 50 55 60 35 75 75 75 75 Greatest Overweight (x) 9 | . . . 1 1 9 . 1 . . . 2 1 1 2 . . 9 Average Overweight (x) . | . . . . 1 . . . . . . . . 1 . . . . Largest Inventory Capacity 10 | 6 6 6 10 10 10 10 10 10 10 10 10 10 10 10 10 10 10 Average Capacity 9 | 4 6 6 6 10 10 10 10 10 10 10 10 10 10 10 10 10 10 Most Carried 10 | 1 2 6 6 10 10 10 10 10 10 10 10 10 10 10 10 10 6 Average Carried 8 | . 1 5 5 9 9 9 9 9 10 9 9 9 10 7 8 8 2 Final Capacity 10 | 6 6 6 10 10 10 10 10 10 10 10 10 10 10 10 10 10 10 Final Carried 10 | 1 2 6 6 10 10 10 10 10 10 10 10 10 10 7 10 6 1 Class Distribution -------------------- 38% | Mutant 27% | Ninja 12% | Scavenger-Assassin 7% | Hacker-Mutant 5% | Hacker-Assassin 3% | Scavenger-Mutant Dominant Class ---------------- Mutant | -10/Materials Mutant | -10/Mines Mutant | -10/Exiles Mutant | -9/Mines Mutant | -8/Materials Ninja | -7/Factory Ninja | -6/Factory Ninja | -6/Lower Caves Ninja | -6/Lower Caves Mutant | -6/Data Miner Hacker-Assassin | -5/Proximity Caves Scavenger-Assassin | -5/Factory Scavenger-Assassin | -5/Upper Caves Hacker-Mutant | -5/Upper Caves Mutant | -5/Zhirov Mutant | -4/Proximity Caves Gunner | -4/Factory Resources | -11 -10 -10 -10 -9 -8 -7 -6 -6 -6 -6 -5 -5 -5 -5 -5 -4 -4 ----------- Run | Scr Mat Min Exi Min Mat Fac Fac Low Low Dat Pro Fac Upp Upp Zhi Pro Fac Matter Collected 1844 | 253 17 92 . 10 383 100 120 30 . 30 240 90 36 182 95 133 33 Remotely . | . . . . . . . . . . . . . . . . . . Salvage Created 3535 | . 192 48 . . 523 104 159 . 16 30 364 174 106 767 296 479 277 Parts 173 | . 11 3 . . 37 7 12 . 4 1 20 5 9 28 5 17 14 Haulers Intercepted 3 | . 2 . . . . . . . . . . . . 1 . . . Recyclers Shooed 1 | . . . . . 1 . . . . . . . . . . . . Parts Field Recycled . | . . . . . . . . . . . . . . . . . . Retrieved Matter . | . . . . . . . . . . . . . . . . . . Parts Self-Destructed 89 | . . . . . . . . . 2 . 36 . 9 27 1 14 . Prevented 10 | . . . . . . . . . 3 . 7 . . . . . . Kills | -11 -10 -10 -10 -9 -8 -7 -6 -6 -6 -6 -5 -5 -5 -5 -5 -4 -4 ------- Run | Scr Mat Min Exi Min Mat Fac Fac Low Low Dat Pro Fac Upp Upp Zhi Pro Fac Combat Hostiles Destroyed 51 | . 4 1 . . 8 2 3 . 1 . 5 2 2 11 . 6 6 Melee 37 | . . . . . 4 2 3 . 1 . 4 2 2 10 . 6 3 Guns 12 | . 4 1 . . 4 . . . . . . . . . . . 3 Classes Destroyed 15 | . 3 . . . 7 1 . . 1 . 1 . . 1 . 1 . Worker 1 | . . . . . 1 . . . . . . . . . . . . Builder 1 | . . . . . 1 . . . . . . . . . . . . Hauler 3 | . 2 . . . . . . . . . . . . 1 . . . Recycler 1 | . . . . . 1 . . . . . . . . . . . . Minesweeper 1 | . . . . . . . . . . . . . . . . 1 . Mechanic 1 | . . . . . 1 . . . . . . . . . . . . Watcher 7 | . . . . . 3 1 2 . . . 1 . . . . . . Swarmer 12 | . 3 . . . 2 1 2 . . . . . . 1 . . 3 Grunt 20 | . 1 1 . . 3 . . . . . . . . 6 . 6 3 Brawler 1 | . . . . . . . . . . . . . . 1 . . . Duelist 2 | . . . . . . . . . . . 2 . . . . . . Sentry 6 | . . . . . 2 . . . . . 2 1 . 1 . . . Hunter 3 | . . . . . 1 . . . . . . . . 2 . . . Programmer 5 | . . . . . . 1 1 . . . 1 . 2 . . . . Combat Programmer 1 | . . . . . . . . . . . . 1 . . . . . Master Thief 1 | . . . . . . . . . 1 . . . . . . . . Best Kill Streak 4 | . 3 1 . . 4 1 2 . 1 1 1 1 1 4 . 4 3 Combat Bots Only 4 | . 2 1 . . 2 1 2 . 1 . 1 1 1 4 . 4 3 Max Kills in Single Turn 1 | . 1 1 . . 1 1 1 . 1 1 1 1 1 1 . 1 1 Gunslinging . | . . . . . . . . . . . . . . . . . . Exploded . | . . . . . . . . . . . . . . . . . . Melee 1 | . . . . . 1 1 1 . 1 . 1 1 1 1 . 1 1 Uniques/NPCs Destroyed 1 | . . . . . . . . . . 1 . . . . . . . Data Miner (-6/Data Miner) Combat | -11 -10 -10 -10 -9 -8 -7 -6 -6 -6 -6 -5 -5 -5 -5 -5 -4 -4 -------- Run | Scr Mat Min Exi Min Mat Fac Fac Low Low Dat Pro Fac Upp Upp Zhi Pro Fac Damage Taken 7657 | . 163 112 . 15 928 202 185 . 7 231 859 918 78 1804 14 855 1286 Core 1769 | . 61 29 . . 205 38 15 . 7 47 115 272 37 554 14 62 313 Absorbed by Shields . | . . . . . . . . . . . . . . . . . . Core Remaining (%) 67 | 100 . . . 64 62 94 . . . . 78 . . . . 5 . Volleys Fired 74 | . 21 6 . . 39 . . . . . . . . . . . 8 Largest 4 | . 2 2 . . 2 . . . . . . . . . . . 4 Hottest 301 | . 100 58 . . 58 . . . . . . . . . . . 301 Shots Fired 149 | . 42 12 . . 76 . . . . . . . . . . . 19 Gun 104 | . 42 6 . . 37 . . . . . . . . . . . 19 Cannon 45 | . . 6 . . 39 . . . . . . . . . . . . Launcher . | . . . . . . . . . . . . . . . . . . Special . | . . . . . . . . . . . . . . . . . . Kinetic 88 | . . 12 . . 76 . . . . . . . . . . . . Thermal 61 | . 42 . . . . . . . . . . . . . . . 19 Explosive . | . . . . . . . . . . . . . . . . . . Electromagnetic . | . . . . . . . . . . . . . . . . . . Robot Hit Streak 17 | . 5 5 . . 17 . . . . . . . . . . . 16 Robot Miss Streak 3 | . 3 2 . . 3 . . . . . . . . . . . . Penetration Max . | . . . . . . . . . . . . . . . . . . Secondary Targets . | . . . . . . . . . . . . . . . . . . Shots Hit Robots 272 | . 20 7 . . 72 7 16 . 3 2 24 24 3 45 8 18 23 Core Hits 104 | . 9 3 . . 21 3 5 . 1 1 10 6 2 15 3 11 14 Critical Hits 6 | . . . . . 1 . . . 1 . . . . 2 . 2 . Critical Kills 2 | . . . . . . . . . 1 . . . . . . 1 . Critical Parts Destroyed 4 | . . . . . 1 . . . . . . . . 2 . 1 . Melee Attacks 273 | . . . . . 30 10 35 1 6 3 58 31 3 53 16 18 9 Thermal 14 | . . . . . . . . . . . . . . 5 8 . 1 Impact 28 | . . . . . 1 3 3 . . 1 10 5 1 4 . . . Slashing 222 | . . . . . 29 7 32 1 6 2 48 19 2 44 6 18 8 Piercing 7 | . . . . . . . . . . . . 7 . . . . . Sneak Attacks 10 | . . . . . 5 . 1 . . 1 1 . . 1 . 1 . Combat Hostiles . | . . . . . . . . . . . . . . . . . . Follow-up Attacks 34 | . . . . . . 2 1 . 1 . 7 12 1 8 2 . . Damage Inflicted 9905 | . 292 101 . . 1915 244 777 . 125 154 1043 1020 128 1799 708 873 726 Guns 1064 | . 292 53 . . 335 . . . . . . . . . . . 384 Cannons 410 | . . 48 . . 362 . . . . . . . . . . . . Explosions . | . . . . . . . . . . . . . . . . . . Melee 8412 | . . . . . 1211 244 777 . 125 154 1043 1020 128 1799 708 873 330 Ramming 19 | . . . . . 7 . . . . . . . . . . . 12 Kinetic 798 | . . 101 . . 697 . . . . . . . . . . . . Thermal 676 | . 292 . . . . . . . . . . . . . . . 384 Explosive . | . . . . . . . . . . . . . . . . . . Electromagnetic . | . . . . . . . . . . . . . . . . . . Impact 559 | . . . . . . 53 32 . . . 141 159 42 132 . . . Slashing 7551 | . . . . . 1211 191 745 . 125 154 902 559 86 1667 708 873 330 Piercing 302 | . . . . . . . . . . . . 302 . . . . . Highest Corruption 12 | . . . . . . 2 . . . . 2 7 8 12 12 12 . Average Corruption 7 | . . . . . . 1 . . . . 1 4 7 11 12 12 . Corruption Purged . | . . . . . . . . . . . . . . . . . . Effects 95 | . . . . . . 1 . . . . 3 3 16 35 15 22 . Message Errors 19 | . . . . . . . . . . . . 1 5 8 . 5 . Matter Fused 15 | . . . . . . . . . . . . . 4 3 2 6 . Heat Flow Errors 9 | . . . . . . . . . . . 1 . . 5 2 1 . Energy Discharges 9 | . . . . . . . . . . . 1 . 3 4 . 1 . Parts Rejected 2 | . . . . . . . . . . . . . . 1 . 1 . Data Loss (minor) 12 | . . . . . . 1 . . . . 1 . 3 4 . 3 . Data Loss (major) 5 | . . . . . . . . . . . . 1 . 2 2 . . Alerts 4 | . . . . . . . . . . . . . . 1 1 2 . Misdirections 14 | . . . . . . . . . . . . . . 5 7 2 . Targeting Errors 6 | . . . . . . . . . . . . 1 1 2 1 1 . Overload Shots . | . . . . . . . . . . . . . . . . . . Overflow Damage 827 | . . 3 . . 155 . 169 . 12 . 123 4 . 92 184 85 . Projectiles 12 | . . 3 . . 9 . . . . . . . . . . . . Explosions . | . . . . . . . . . . . . . . . . . . Melee 815 | . . . . . 146 . 169 . 12 . 123 4 . 92 184 85 . Knockbacks 19 | . . 1 . . 17 . . . . . 1 . . . . . . Impact 1 | . . . . . . . . . . . 1 . . . . . . Kinetic 15 | . . 1 . . 14 . . . . . . . . . . . . Secondary 3 | . . . . . 3 . . . . . . . . . . . . Self-Inflicted Damage 4 | . . . . . . . . . . . . . . . . . 4 Shots . | . . . . . . . . . . . . . . . . . . Rammed 2 | . . . . . . . . . . . . . . . . . 2 Targets Rammed 4 | . . . . . 1 . . . . . . . . . . . 3 Kicked 2 | . . . . . 1 . . . . . . . . . . . 1 Crushed . | . . . . . . . . . . . . . . . . . . Highest Temperature 371 | . 371 81 . . 39 . . . . . 196 . . 171 222 154 129 Average Temperature 103 | . 168 49 . . 12 . . . . . 124 . . 76 94 81 66 Received Heat Transfer 1422 | . 36 63 . . 459 27 . . . 30 39 27 . 240 . 246 255 Effects 1 | . 1 . . . . . . . . . . . . . . . . Shutdowns 1 | . 1 . . . . . . . . . . . . . . . . Siege Activations . | . . . . . . . . . . . . . . . . . . Robots Corrupted . | . . . . . . . . . . . . . . . . . . Combat Hostiles . | . . . . . . . . . . . . . . . . . . Parts Fried 4 | . . . . . . . . . . . 1 . . 3 . . . Impact Corruptions 3 | . . . . . . . . . . . 2 . . 1 . . . Robots Melted . | . . . . . . . . . . . . . . . . . . Combat Hostiles . | . . . . . . . . . . . . . . . . . . Parts Melted 3 | . . . . . . . . . . . . . . . . . 3 Heat Transferred 1547 | . 851 . . . . . . . . . . . . . . . 696 Parts Sabotaged . | . . . . . . . . . . . . . . . . . . Parts Stolen 6 | . . . . . . . . . . . . . . 6 . . . Parts Stripped . | . . . . . . . . . . . . . . . . . . Power Chain Reactions . | . . . . . . . . . . . . . . . . . . Missiles Intercepted . | . . . . . . . . . . . . . . . . . . Alert | -11 -10 -10 -10 -9 -8 -7 -6 -6 -6 -6 -5 -5 -5 -5 -5 -4 -4 ------- Run | Scr Mat Min Exi Min Mat Fac Fac Low Low Dat Pro Fac Upp Upp Zhi Pro Fac Peak Influence 168 | . 149 117 . . 155 82 168 . . . . 91 . . . . 162 Initial 57 | . . 57 . . . 45 33 . . . . 48 . . . . . Average 47 | . 98 48 . . 72 35 40 . . . . 48 . . . . 75 Maximum Alert Level . | . . . . . . . . . . . . . . . . . . Low Security (%) 100 | 100 100 100 . 100 100 100 100 . . . . 100 . . . . 100 Level 1 . | . . . . . . . . . . . . . . . . . . Level 2 . | . . . . . . . . . . . . . . . . . . Level 3 . | . . . . . . . . . . . . . . . . . . Level 4 . | . . . . . . . . . . . . . . . . . . Level 5 . | . . . . . . . . . . . . . . . . . . High Security . | . . . . . . . . . . . . . . . . . . Max Security . | . . . . . . . . . . . . . . . . . . Squads Dispatched 10 | . . . . . 2 2 1 . . . . 2 . . . . 3 Investigation 3 | . . . . . 2 . . . . . . . . . . . 1 Extermination 2 | . . . . . . 1 1 . . . . . . . . . . Reinforcement 3 | . . . . . . 1 . . . . . . . . . . 2 Assault . | . . . . . . . . . . . . . . . . . . Garrison . | . . . . . . . . . . . . . . . . . . Intercept 2 | . . . . . . . . . . . . 2 . . . . . Construction Impeded . | . . . . . . . . . . . . . . . . . . Haulers Reinforced . | . . . . . . . . . . . . . . . . . . Stealth | -11 -10 -10 -10 -9 -8 -7 -6 -6 -6 -6 -5 -5 -5 -5 -5 -4 -4 --------- Run | Scr Mat Min Exi Min Mat Fac Fac Low Low Dat Pro Fac Upp Upp Zhi Pro Fac Distress Signals . | . . . . . . . . . . . . . . . . . . Communications Jammed 28 | . . . . . . . . . . . 23 . . . . . 5 Distress Signals 28 | . . . . . . . . . . . 23 . . . . . 5 Times Spotted 122 | . 8 2 . . 14 7 7 . 3 4 16 4 2 23 . 8 24 Peak Tracking Total 9 | . 4 2 . . 4 4 3 . 2 4 3 2 2 6 . 4 9 Tactical Retreats 19 | . 1 1 . . 1 . 1 . . . 4 . . 7 . . 4 Traps | -11 -10 -10 -10 -9 -8 -7 -6 -6 -6 -6 -5 -5 -5 -5 -5 -4 -4 ------- Run | Scr Mat Min Exi Min Mat Fac Fac Low Low Dat Pro Fac Upp Upp Zhi Pro Fac Traps Triggered 5 | . . . . . 1 2 1 . . . 1 . . . . . . Indirectly . | . . . . . . . . . . . . . . . . . . Trap Hack Attempts . | . . . . . . . . . . . . . . . . . . Triggered . | . . . . . . . . . . . . . . . . . . Disarmed . | . . . . . . . . . . . . . . . . . . Reprogrammed . | . . . . . . . . . . . . . . . . . . Reused . | . . . . . . . . . . . . . . . . . . Traps Extracted . | . . . . . . . . . . . . . . . . . . Installed . | . . . . . . . . . . . . . . . . . . Triggered 5 | . . . . . . . . . 4 . . . . . . 1 . Machines | -11 -10 -10 -10 -9 -8 -7 -6 -6 -6 -6 -5 -5 -5 -5 -5 -4 -4 ---------- Run | Scr Mat Min Exi Min Mat Fac Fac Low Low Dat Pro Fac Upp Upp Zhi Pro Fac Machines Disabled 3 | . . . . . 2 . . . . . 1 . . . . . . Max in Single Turn 1 | . . . . . 1 . . . . . 1 . . . . . . Garrison Access 1 | . . . . . 1 . . . . . . . . . . . . Machines Sabotaged . | . . . . . . . . . . . . . . . . . . Garrisons Compromised . | . . . . . . . . . . . . . . . . . . Overloaded Fab Kills . | . . . . . . . . . . . . . . . . . . Fab Network Shutdowns . | . . . . . . . . . . . . . . . . . . Hacking | -11 -10 -10 -10 -9 -8 -7 -6 -6 -6 -6 -5 -5 -5 -5 -5 -4 -4 --------- Run | Scr Mat Min Exi Min Mat Fac Fac Low Low Dat Pro Fac Upp Upp Zhi Pro Fac Machines Accessed 29 | . . . 1 1 7 2 4 . 1 4 2 2 . . 4 . 1 Terminals 9 | . . . . . 4 . 1 . . . 1 2 . . . . 1 Fabricators 5 | . . . . . . 1 3 . . . 1 . . . . . . Repair Stations 1 | . . . . . . 1 . . . . . . . . . . . Recycling Units 1 | . . . . . 1 . . . . . . . . . . . . Scanalyzers 1 | . . . . . 1 . . . . . . . . . . . . Garrison Access 1 | . . . . . 1 . . . . . . . . . . . . Total Hacks 74 | . . . 1 1 12 3 6 . 1 24 4 6 . . 13 . 3 Successful 61 | . . . 1 1 7 2 4 . 1 24 3 5 . . 13 . . Failed 13 | . . . . . 5 1 2 . . . 1 1 . . . . 3 Catastrophic 1 | . . . . . 1 . . . . . . . . . . . . Database Lockouts . | . . . . . . . . . . . . . . . . . . Manual 5 | . . . 1 . 4 . . . . . . . . . . . . Terminals 17 | . . . . . 5 . 2 . . . 1 6 . . . . 3 Fabricators 9 | . . . . . . 2 4 . . . 3 . . . . . . Repair Stations 1 | . . . . . . 1 . . . . . . . . . . . Recycling Units 2 | . . . . . 2 . . . . . . . . . . . . Scanalyzers 3 | . . . . . 3 . . . . . . . . . . . . Garrison Access 2 | . . . . . 2 . . . . . . . . . . . . Terminal Hacks 50 | . . . 1 1 3 . 1 . 1 24 1 5 . . 13 . . Record 18 | . . . . . . . 1 . . 11 . 1 . . 5 . . Part Schematic 12 | . . . . . . . . . . 7 . 1 . . 4 . . Robot Schematic 3 | . . . . . . . . . . 3 . . . . . . . Robot Analysis 1 | . . . . . 1 . . . . . . . . . . . . Prototype ID Bank 7 | . . . . . . . . . . 3 . . . . 4 . . Open Door 3 | . . . . 1 . . . . 1 . 1 . . . . . . Maintenance Status 1 | . . . . . . . . . . . . 1 . . . . . Patrol Status 1 | . . . . . . . . . . . . 1 . . . . . Transport Status 1 | . . . . . 1 . . . . . . . . . . . . Zone Layout 2 | . . . . . 1 . . . . . . 1 . . . . . EX-Prototype ID Bank 1 | . . . 1 . . . . . . . . . . . . . . Fabricator Hacks 7 | . . . . . . 2 3 . . . 2 . . . . . . Load Schematic 2 | . . . . . . . 1 . . . 1 . . . . . . Build 5 | . . . . . . 2 2 . . . 1 . . . . . . Repair Station Hacks . | . . . . . . . . . . . . . . . . . . Recycling Unit Hacks . | . . . . . . . . . . . . . . . . . . Scanalyzer 3 | . . . . . 3 . . . . . . . . . . . . Insert Component 1 | . . . . . 1 . . . . . . . . . . . . Analyze 2 | . . . . . 2 . . . . . . . . . . . . Garrison Access Hacks 1 | . . . . . 1 . . . . . . . . . . . . Seal Access 1 | . . . . . 1 . . . . . . . . . . . . Unauthorized Hacks . | . . . . . . . . . . . . . . . . . . Terminals . | . . . . . . . . . . . . . . . . . . Fabricators . | . . . . . . . . . . . . . . . . . . Repair Stations . | . . . . . . . . . . . . . . . . . . Recycling Units . | . . . . . . . . . . . . . . . . . . Scanalyzers . | . . . . . . . . . . . . . . . . . . Garrison Access . | . . . . . . . . . . . . . . . . . . Data Cores Recovered . | . . . . . . . . . . . . . . . . . . Used . | . . . . . . . . . . . . . . . . . . Hacking Detections 11 | . . . . . 4 1 3 . . . 1 1 . . . . 1 Full Trace Events 3 | . . . . . 1 . . . . . 1 . . . . . 1 Feedback Events . | . . . . . . . . . . . . . . . . . . Feedback Blocked . | . . . . . . . . . . . . . . . . . . Robot Schematics Acquired 3 | . . . . . . . . . . 3 . . . . . . . Robots Built . | . . . . . . . . . . . . . . . . . . Matter . | . . . . . . . . . . . . . . . . . . Time . | . . . . . . . . . . . . . . . . . . Total Robot Build Rating . | . . . . . . . . . . . . . . . . . . Part Schematics Acquired 13 | . . . . . 1 . . . . 7 . 1 . . 4 . . Parts Built 5 | . . . . . . 2 3 . . . . . . . . . . Matter 804 | . . . . . . 380 424 . . . . . . . . . . Time 346 | . . . . . . 190 156 . . . . . . . . . . Total Part Build Rating 26 | . . . . . . 10 16 . . . . . . . . . . Parts Repaired . | . . . . . . . . . . . . . . . . . . Time . | . . . . . . . . . . . . . . . . . . Parts Recycled . | . . . . . . . . . . . . . . . . . . Recycled Matter . | . . . . . . . . . . . . . . . . . . Retrieved Matter . | . . . . . . . . . . . . . . . . . . Retrieved Components . | . . . . . . . . . . . . . . . . . . Parts Scanalyzed 1 | . . . . . 1 . . . . . . . . . . . . Part Schematics Acquired 1 | . . . . . 1 . . . . . . . . . . . . Parts Damaged . | . . . . . . . . . . . . . . . . . . Bothacking | -11 -10 -10 -10 -9 -8 -7 -6 -6 -6 -6 -5 -5 -5 -5 -5 -4 -4 ------------ Run | Scr Mat Min Exi Min Mat Fac Fac Low Low Dat Pro Fac Upp Upp Zhi Pro Fac Used RIF Installer . | . . . . . . . . . . . . . . . . . . Robots Hacked . | . . . . . . . . . . . . . . . . . . Non-combat . | . . . . . . . . . . . . . . . . . . Combat . | . . . . . . . . . . . . . . . . . . Robot Hacks Applied . | . . . . . . . . . . . . . . . . . . Relay Couplers Released . | . . . . . . . . . . . . . . . . . . Robots Rewired 10 | . . . . . . . . . . . 10 . . . . . . Allies Hacked . | . . . . . . . . . . . . . . . . . . Hacks Repelled . | . . . . . . . . . . . . . . . . . . Allies | -11 -10 -10 -10 -9 -8 -7 -6 -6 -6 -6 -5 -5 -5 -5 -5 -4 -4 -------- Run | Scr Mat Min Exi Min Mat Fac Fac Low Low Dat Pro Fac Upp Upp Zhi Pro Fac Total Allies 10 | . . . . . . . . . . . 10 . . . . . . Largest Group 6 | . . . . . . . . . . . 6 6 . . . . . Highest-Rated Group 182 | . . . . . . . . . . . 182 113 . . . . . Highest-Rated Ally 46 | . . . . . . . . . . . 46 30 . . . . . Total Orders . | . . . . . . . . . . . . . . . . . . Ally Attacks 56 | . . . . . . . . . . . 46 10 . . . . . Total Damage 1482 | . . . . . . . . . . . 1337 145 . . . . . Kills 6 | . . . . . . . . . . . 4 2 . . . . . Allies Corrupted . | . . . . . . . . . . . . . . . . . . Allies Melted . | . . . . . . . . . . . . . . . . . . Intel | -11 -10 -10 -10 -9 -8 -7 -6 -6 -6 -6 -5 -5 -5 -5 -5 -4 -4 ------- Run | Scr Mat Min Exi Min Mat Fac Fac Low Low Dat Pro Fac Upp Upp Zhi Pro Fac Robot Analysis Total 116 | . . . . . 1 . . . . 115 . . . . . . . Derelict Logs Recovered 8 | . . 2 . 2 . . . . 1 . 1 . . 1 . 1 . Drone Launches . | . . . . . . . . . . . . . . . . . . Drone Recoveries . | . . . . . . . . . . . . . . . . . . Exploration | -11 -10 -10 -10 -9 -8 -7 -6 -6 -6 -6 -5 -5 -5 -5 -5 -4 -4 ------------- Run | Scr Mat Min Exi Min Mat Fac Fac Low Low Dat Pro Fac Upp Upp Zhi Pro Fac Turns Passed 8680 | 69 323 605 306 376 637 764 1008 189 374 72 1075 716 629 676 254 444 163 Spaces Moved 6797 | 57 207 476 244 246 601 627 830 338 534 99 733 479 410 406 173 273 64 Core 18 | 13 . . . . 4 . . . . . . . . . . . 1 Treads 67 | . . . . . . . . . . . . . . 67 . . . Legs 3196 | 44 207 476 244 246 64 . . . . . 188 479 410 329 173 273 63 Wheels 8 | . . . . . 8 . . . . . . . . . . . . Hover 3508 | . . . . . 525 627 830 338 534 99 545 . . 10 . . . Flight . | . . . . . . . . . . . . . . . . . . Fastest Speed 40 | 50 120 120 120 150 40 40 43 45 45 45 45 120 150 120 120 120 120 Average Speed 86 | 104 120 120 123 150 55 43 44 45 45 45 83 121 150 128 120 120 142 Slowest Speed 500 | 120 120 120 150 150 500 48 116 45 45 45 170 150 150 180 120 120 500 Overloaded Moves . | . . . . . . . . . . . . . . . . . . Propulsion Burnouts . | . . . . . . . . . . . . . . . . . . Robots Hopped . | . . . . . . . . . . . . . . . . . . Cave-ins Triggered . | . . . . . . . . . . . . . . . . . . Teleports 1 | . . . . . . . . . . . . . . . . 1 . Exploration Rate (%) 45 | 3 41 74 61 65 48 21 28 51 57 77 65 10 59 40 60 48 2 Regions Visited 17 Branch Regions 11 Pre-discovered Areas 36 | . . 2 . 1 . . . . . 29 1 . . . 3 . . Known Exits Taken 9 | . . . . . 1 1 1 1 1 1 1 1 1 . . . . Unknown Exits Taken 8 | 1 1 1 1 1 . . . . . . . . . 1 1 1 . Scrap Searched 11 | . . 1 . 1 . . . 3 2 . . . 1 2 . 1 . Spaces Dug 26 | . . . . . 3 . 12 1 . . 8 2 . . . . . Terrain Destroyed 26 | . . . . . 3 . 12 1 . . 8 2 . . . . . Melee 26 | . . . . . 3 . 12 1 . . 8 2 . . . . . Projectile . | . . . . . . . . . . . . . . . . . . AOE . | . . . . . . . . . . . . . . . . . . Terrain Rammed . | . . . . . . . . . . . . . . . . . . Walls Destroyed . | . . . . . . . . . . . . . . . . . . Machines Disabled . | . . . . . . . . . . . . . . . . . . Actions | -11 -10 -10 -10 -9 -8 -7 -6 -6 -6 -6 -5 -5 -5 -5 -5 -4 -4 --------- Run | Scr Mat Min Exi Min Mat Fac Fac Low Low Dat Pro Fac Upp Upp Zhi Pro Fac Total 9073 | 63 239 501 251 255 781 1113 1425 372 660 121 1130 592 422 488 195 362 103 Wait 1663 | . 10 . . . 75 436 537 29 122 17 272 79 10 11 . 61 4 Move 6780 | 56 206 475 243 245 600 626 829 337 533 98 732 478 409 405 172 272 64 Hop . | . . . . . . . . . . . . . . . . . . Pick Up 57 | 1 1 7 3 7 9 7 6 1 . 1 1 4 . 5 2 . 2 Fast Attach 69 | 6 1 3 . . 13 4 1 2 . . 12 5 . 10 5 3 4 Attach 37 | . . 1 . . 3 3 4 1 . . 1 3 . 8 . 5 8 Detach 10 | . . 1 . . 1 2 . . . . 1 . . 2 1 1 1 Swap 35 | . . 1 1 . 1 3 6 . 1 3 10 4 1 3 . 1 . Drop 62 | . . 7 4 3 10 12 10 1 . . 7 3 . 2 2 1 . Fire 74 | . 21 6 . . 39 . . . . . . . . . . . 8 Melee 215 | . . . . . 29 7 32 1 4 2 40 16 2 42 13 18 9 Ram . | . . . . . . . . . . . . . . . . . . Kick 4 | . . . . . 1 . . . . . . . . . . . 3 Crush . | . . . . . . . . . . . . . . . . . . Escape Stasis 13 | . . . . . . 13 . . . . . . . . . . . Rewire 54 | . . . . . . . . . . . 54 . . . . . . Trap . | . . . . . . . . . . . . . . . . . . Miscellaneous . | . . . . . . . . . . . . . . . . . . Route ------- -11/Scrapyard -10/Materials (discovered 2 exits: [*Mat] / [*Min]) -10/Mines (discovered 2 exits: [*Mat] / *Exi) -10/Exiles -9/Mines -8/Materials (discovered 2 exits: *Fac x2) -7/Factory -6/Factory (discovered 2 exits: *Fac / *Low) -6/Lower Caves -6/Lower Caves -6/Data Miner -5/Proximity Caves -5/Factory (discovered 2 exits: *Upp x2) -5/Upper Caves -5/Upper Caves -5/Zhirov -4/Proximity Caves -4/Factory History --------- Turn | Location | Event 13 | -11/Scrapyard | Discovered new exit (range 16) 70 | -11/Scrapyard | Entered Materials 229 | -10/Materials | Discovered new exit (range 16) 305 | -10/Materials | Build established: Mutant 351 | -10/Materials | Discovered new exit (range 16) 393 | -10/Materials | Entered Mines 420 | -10/Mines | Discovered new exit (range 8) 428 | -10/Mines | Joined a pair of Derelicts in attacking an 0b10 outpost 612 | -10/Mines | Deemed a non-threat by the Exiles lab entrance 612 | -10/Mines | Discovered new exit (range 5) 696 | -10/Mines | Learned location of Storage (-9) 707 | -10/Mines | Learned location of Mines (-9) 761 | -10/Mines | Found a damaged Exp. Sensor Array with a note attached 762 | -10/Mines | Received a Rocket Launcher from a helpful Derelict 766 | -10/Mines | Found Prototype Device 766 | -10/Mines | Identified Exp. Sensor Array 998 | -10/Mines | Entered Exiles 1028 | -10/Exiles | Met 8R-AWN 1049 | -10/Exiles | Met EX-HEX 1084 | -10/Exiles | Met EX-BIN 1100 | -10/Exiles | Aligned with FarCom system 1102 | -10/Exiles | Given EX-Vault access code 1136 | -10/Exiles | Opened EX-Vault 1148 | -10/Exiles | Found Skeleton Box 1154 | -10/Exiles | Found Chronowheel 1159 | -10/Exiles | Found Modified TNC 1185 | -10/Exiles | Warned to stay clear of 0b10 Research branches 1190 | -10/Exiles | Exiles lab attacked by MAIN.C 1288 | -10/Exiles | Discovered new exit (range 14) 1304 | -10/Exiles | Stole three prototypes: Skeleton Box, Chronowheel, Modified TNC 1304 | -10/Exiles | Entered Mines 1315 | -9/Mines | Met a Derelict bent on vengeance 1336 | -9/Mines | Found a hidden stash of uninstalled traps 1359 | -9/Mines | Learned location of 1 exit from Materials 1396 | -9/Mines | Met a Derelict who couldn't figure out how to use a Trap Extractor 1511 | -9/Mines | Discovered new exit (range 10) 1616 | -9/Mines | Learned location of Zion (-7) 1659 | -9/Mines | Assembled infested the area 1664 | -9/Mines | Assisted by a Guerilla fighting off Assembled 1680 | -9/Mines | Entered Materials 1680 | -8/Materials | Evolved 4 slots: Propulsion x2, Utility x2 1681 | -8/Materials | Identified exit to Factory 1937 | -8/Materials | Lost 7 parts (1p3n1u2w) 2284 | -8/Materials | Discovered exit to Factory (range 15) 2317 | -8/Materials | Entered Factory 2317 | -7/Factory | Evolved 2 slots: Utility x2 2319 | -7/Factory | FarCom data flow suspended 2669 | -7/Factory | Build established: Ninja 2865 | -7/Factory | Fabricated Adv. Melee Analysis Suite (x1) 3004 | -7/Factory | Fabricated Adv. Melee Analysis Suite (x1) 3069 | -7/Factory | Discovered new exit (range 15) 3081 | -7/Factory | Identified exit to Factory 3081 | -7/Factory | Entered another Factory area 3081 | -6/Factory | Evolved 2 slots: Power x1, Utility x1 3115 | -6/Factory | Fabricated Chainsword (x2) 3607 | -6/Factory | Fabricated Adv. Core Analyzer (x1) 3673 | -6/Factory | Discovered new exit (range 4) 3674 | -6/Factory | Identified exit to Factory 4085 | -6/Factory | Discovered new exit (range 8) 4087 | -6/Factory | Identified exit to Lower Caves 4089 | -6/Factory | Entered Lower Caves 4144 | -6/Lower Caves | Found Alien Artifact 4144 | -6/Lower Caves | Identified Core Expander 4144 | -6/Lower Caves | Installed Core Expander, added new Weapon slot 4266 | -6/Lower Caves | Discovered new exit (range 5) 4269 | -6/Lower Caves | Identified exit to Lower Caves 4278 | -6/Lower Caves | Entered another Lower Caves area 4278 | -6/Lower Caves | Spotted 2E-XHR(f) 4279 | -6/Lower Caves | Encountered a Master Thief 4286 | -6/Lower Caves | Destroyed 2E-XHR(f) 4295 | -6/Lower Caves | Spotted 0M-BOS(f) 4297 | -6/Lower Caves | Encountered a Master Thief 4579 | -6/Lower Caves | Learned 4 Factory zone layouts 4634 | -6/Lower Caves | Discovered new exit (range 14) 4652 | -6/Lower Caves | Identified exit to Data Miner 4652 | -6/Lower Caves | Entered Data Miner 4652 | -6/Data Miner | Discovered new exit (range 6) 4661 | -6/Data Miner | Met Data Miner 4669 | -6/Data Miner | Learned location of Section 7 (-2) 4669 | -6/Data Miner | Acquired the access code to Warlord's prototype stash 4677 | -6/Data Miner | Received God Mode back door access code from Data Miner 4702 | -6/Data Miner | Activated Chronowheel 4704 | -6/Data Miner | Destroyed Data Miner 4708 | -6/Data Miner | Found Prototype Hackware 4709 | -6/Data Miner | Interfaced with the Data Conduit 4724 | -6/Data Miner | Identified exit to Proximity Caves 4724 | -6/Data Miner | Entered Proximity Caves 4843 | -5/Proximity Caves | Spotted B-75 Beast 4857 | -5/Proximity Caves | Spotted B-75 Beast 4858 | -5/Proximity Caves | Entered a huge 0b10 base via the front door 5217 | -5/Proximity Caves | Identified Deep Network Scanner 5309 | -5/Proximity Caves | Derelicts attacked a huge 0b10 base 5315 | -5/Proximity Caves | Discovered exit to Factory (range 16) 5799 | -5/Proximity Caves | Entered Factory 5799 | -5/Factory | Accompanied by 6 allies 5799 | -5/Factory | Evolved 2 slots: Utility x1, Weapon x1 5801 | -5/Factory | Loaded intel: 273 machine locations 5982 | -5/Factory | Discovered new exit (range 16) 6012 | -5/Factory | Identified exit to Upper Caves 6132 | -5/Factory | Build established: Scavenger-Assassin 6136 | -5/Factory | Discovered exit to Upper Caves (range 16) 6380 | -5/Factory | Intercept squad dispatched 6400 | -5/Factory | Spotted Tracker 6412 | -5/Factory | Allies destroyed Tracker 6452 | -5/Factory | Spotted Combat Programmer 6477 | -5/Factory | Destroyed Combat Programmer 6503 | -5/Factory | Lost 3 parts (2n1w) 6515 | -5/Factory | Entered Upper Caves 7054 | -5/Upper Caves | Discovered new exit (range 16) 7075 | -5/Upper Caves | Identified exit to Upper Caves 7144 | -5/Upper Caves | Entered another Upper Caves area 7146 | -5/Upper Caves | Attracted the attention of an 0b10 checkpoint 7166 | -5/Upper Caves | Core integrity fell below 50% 7187 | -5/Upper Caves | Lost 4 parts (2n1u1w) 7211 | -5/Upper Caves | System corruption reached 10% 7376 | -5/Upper Caves | Lost 6 parts (2p1n2u1w) 7410 | -5/Upper Caves | Encountered a Warlord checkpoint 7624 | -5/Upper Caves | Core integrity fell below 20% 7627 | -5/Upper Caves | Build established: Hacker-Mutant 7718 | -5/Upper Caves | Found Imp. Powered Armor 7723 | -5/Upper Caves | Found Imp. Powered Armor 7782 | -5/Upper Caves | Learned Factory terminal intel 7789 | -5/Upper Caves | Discovered new exit (range 15) 7790 | -5/Upper Caves | Spotted AF-TP3(f) 7791 | -5/Upper Caves | Spotted A5-15W(f) 7791 | -5/Upper Caves | Spotted Q5-56J(f) 7792 | -5/Upper Caves | Encountered a Master Thief 7792 | -5/Upper Caves | Encountered a Master Thief 7792 | -5/Upper Caves | Encountered a Master Thief 7793 | -5/Upper Caves | Skeleton Box stolen by Master Thief 7794 | -5/Upper Caves | Spotted 4C-H54(f) 7795 | -5/Upper Caves | Encountered a Master Thief 7799 | -5/Upper Caves | Adv. Core Analyzer stolen by Master Thief 7801 | -5/Upper Caves | Adv. Force Field stolen by Master Thief 7801 | -5/Upper Caves | Imp. Powered Armor stolen by Master Thief 7820 | -5/Upper Caves | Entered Zhirov 7820 | -5/Zhirov | Discovered new exit (range 3) 7830 | -5/Zhirov | Lost 3 parts (1p2u) 7842 | -5/Zhirov | Met Zhirov 7882 | -5/Zhirov | Zhirov requested help retrieving the SGEMP Prototype 7903 | -5/Zhirov | Found Alien Artifact 7903 | -5/Zhirov | Identified Integrated Reactor 7903 | -5/Zhirov | Installed Integrated Reactor, increased core energy generation (+10) 7920 | -5/Zhirov | Found Alien Artifact 8012 | -5/Zhirov | Found Hvy. Reflective Plating 8074 | -5/Zhirov | Entered Proximity Caves 8088 | -4/Proximity Caves | Build established: Mutant 8228 | -4/Proximity Caves | Learned Research stockpile data 8389 | -4/Proximity Caves | Lost 3 parts (2u1w) 8441 | -4/Proximity Caves | Identified Transdimensional Reconstructor 8441 | -4/Proximity Caves | Warped through subspace 8496 | -4/Proximity Caves | Spotted B-86 Titan 8505 | -4/Proximity Caves | Discovered new exit (range 10) 8518 | -4/Proximity Caves | Entered Factory 8518 | -4/Factory | Evolved 2 slots: Utility x2 8519 | -4/Factory | Loaded intel: 225 machine locations 8520 | -4/Factory | Loaded intel: 22 terminal locations 8642 | -4/Factory | Lost 13 parts (3p3n6u1w) 8681 | -4/Factory | Self-destructed Last Messages --------------- 08628_ Acquired Plasma Rifle. 08632_ Acquired Electrolaser. 08640_ O-16 Technician: "IFF HANDSHAKE FAILED. SECURING TERMINAL." 08645_ ALERT: Hostiles spotted, dispatching reinforcements to Terminal F013. 08654_ Connecting with Terminal... 08654_ Current location identified: Factory 08655_ Connecting with Terminal... 08655_ ALERT: Suspicious activity at Terminal F010. Dispatching Investigation squad. 08660_ Destroyed Lgt. Antimatter Reactor. 08663_ Flexi-carbon Leg destroyed. 08665_ Electrolaser melted. 08665_ G-67 Veteran destroyed. 08667_ Plasma Rifle destroyed. 08668_ S-27 Virus destroyed. 08669_ Lgt. Antimatter Reactor melted. 08669_ G-67 Veteran destroyed. 08676_ Electrolaser destroyed. 08677_ Dispersion Rifle destroyed. 08680_ Plasma Rifle destroyed. Map ----- +----------------------------------------------------+ | | | | | | | | | | | | | | | | | | | | | | | | | | | | | | | ?????????????????????????????????????????????????? | | ??????????????????????????????????????"""????????? | | ?????????????????????????????????????""T""???????? | | ?????????????????????????????????###?""?""???????? | | ????????????????###########?????? +?????????????? | | ??????????????T?# #?????? #?????????????? | | ????????????????# """ T #???### ##????????????? | | ????????????????# """ #??# ???????????? | | ????????????????# """ #??# ???????????? | | ????????????"""?# g#??#^ ???????????? | | ????????????"""?# gg@#??# ??????????? | | ????????????"""?# !gg #??# """ """?"""??????? | | ????????????????# %!s= #??# """ """ """??????? | | ??????????####+######;#####??# """ """ """ ????? | | ??????? ^ % #???# ]???? | | ??????? #####[ ???? | | ??????? ^ % ######??????? | | ???????? #############???????????? | | ???????? #???????????????????????? | | ?????????#####+#########%#??????????????""""?????? | | ???????????? ?????????#%#??????????????""""?????? | | ??????????"""??????????#=#??????????????""""?????? | | ??????????"""????#######+######?????????""""?????? | | ??????????"""????# """%=%*= #??????????????????? | | ?????????????????# "T"=*=[= #######????????????? | | ??????????"?"????# [ # #????????????? | | ??????????"G"????# # ###+###??????? | | ??????????"""????# # #?????? | | ?????????????????# + #?????? | | ?????????????????# """""" # #?????? | | ?????????????????# """""" # #?????? | | ?????????????????# """""" # #?????? | | ?????????????????# """""" ! ######## #?????? | | ?????????????????+ #??????? #?""""? | | ????????????????## ! #???????? #?""""? | +----------------------------------------------------+ Best States ------------- Heat Dissipation 62 Energy Generation 47 Energy Capacity 385 Matter Stores 300 Matter Capacity 300 Sight Range 16 Robot Scan Range 30 Terrain Scan Density 10 Jamming Range 12 Armor Coverage 1600 Resistance: TH 25 Propulsion Shielding 66 Weapon Shielding 66 Melee Speed Boost 20 Phase Shifting 5 Evasion (%) 57 Melee Accuracy 24 Armor Integrity Analysis 50 Recoil Reduction 2 Offensive Hacking 25 Item Schematics ----------------- Chainsword | -8/Materials | Scanalyzed Lgt. Regenerative Plating | -6/Data Miner | Free Combat Drone Bay | -6/Data Miner | Free Cmb. Gravmag System | -6/Data Miner | Free Exp. Sensor Array | -6/Data Miner | Free Exp. Terrain Scanner | -6/Data Miner | Free Exp. Targeting Computer | -6/Data Miner | Free Exp. ECM Suite | -6/Data Miner | Free Adv. Core Analyzer | -5/Factory | Hacked Exp. Heat Sink | -5/Zhirov | Free Assault Drone Bay | -5/Zhirov | Free Imp. Arc Thrower | -5/Zhirov | Free Exp. Optical Array | -5/Zhirov | Free Robot Schematics ------------------ S-27 Virus | -6/Data Miner | Free G-50 Soldier | -6/Data Miner | Free I-36 Angel | -6/Data Miner | Free Fabricated ------------ Adv. Melee Analysis Suite | x1 | -7/Factory | Preloaded Adv. Melee Analysis Suite | x1 | -7/Factory | Preloaded Chainsword | x2 | -6/Factory Adv. Core Analyzer | x1 | -6/Factory | Preloaded Alien Tech Used ----------------- Core Expander Integrated Reactor Transdimensional Reconstructor Achievements -------------- None Challenges ------------ None Game ------ Seed MobilePowerWand Manual? 0 Play Time 01:09:07 Cumulative 126.6 hours Start 2021.04.07 @ 14:09:01 End 2021.04.07 @ 15:17:49 Sessions 1 Manual Loads 0 Difficulty Rogue Special Mode None Game No. 291 Rogue 138 Adventurer 148 Explorer 5 Win Type - Total 3 Types 3/0/0/0/0/0/0/0/0 Lore% 64 Gallery% 73 Achievement% 57 Wizard Run 0 Options --------- ASCII 0 Keyboard 0 Movement Numpad Keybinds 0 Fullscreen 1 Font 14/X11 Map View 84x54 Tactical HUD 1 Map Filters NONE Filters NONE Steam 1 RUN: c2588a77-802a-43f6-a80f-a911de9bb4e8